[Event "14th Karen Asrian Memorial 2024"]
[Site "Yerevan"]
[Date "2024.04.26"]
[Round "3.5"]
[White "Hayrapetyan, Hovik"]
[Black "Chaqryan, Erik"]
[Result "1-0"]
[ECO "E63"]
[WhiteElo "2432"]
[BlackElo "2326"]
[Annotator "TA"]
[PlyCount "153"]
[EventDate "2024.04.24"]
[EventType "swiss"]
[EventCountry "ARM"]
[SourceTitle "playchess.com"]
[Source "ChessBase"]
[SourceQuality "1"]
[TimeControl "40/5400+30:1800+30"]

{[%evp 70,153,12,37,12,20,12,12,28,20,20,13,16,16,33,58,319,314,317,0,0,0,0,0,0,0,0,0,0,0,0,0,0,0,0,0,0,0,0,0,0,0,0,0,44,0,0,0,0,0,0,0,0,0,0,0,0,0,0,0,0,0,0,0,0,0,0,0,14,14,6,6,38,41,273,273,273,273,273,273,29979,29980,29984,29985,29985,29986]} 1. d4 {[%emt 0:00:04]} Nf6 {[%emt 0:00:06]} 2. c4 {[%emt 0:00:08]} g6 {[%emt 0:00:07]} 3. Nc3 {[%emt 0:00:08]} Bg7 {[%emt 0:00:09]} 4. Nf3 {[%emt 0:00:23]} O-O {[%emt 0:00:22]} 5. g3 {[%emt 0:00:33]} d6 {[%emt 0:01:16]} 6. Bg2 {[%emt 0:00:07]} Nc6 {[%emt 0:00:06]} 7. d5 {[%emt 0:02:04]} Na5 {[%emt 0:00:15]} 8. b3 {[%emt 0:00:40]} a6 {[%emt 0:00:59]} 9. Bb2 {[%emt 0:03:16]} Rb8 {[%emt 0:03:39]} 10. O-O {[%emt 0:02:05]} b5 {[%emt 0:02:08]} 11. cxb5 {[%emt 0:00:20]} axb5 {[%emt 0:00:06]} 12. Rc1 {[%emt 0:01:24]} b4 {[%emt 0:02:06]} 13. Nb1 {[%emt 0:02:50]} e5 {[%emt 0:15:53]} 14. Ne1 {[%emt 0:07:44]} h5 {[%emt 0:13:07]} 15. Qd2 {[%emt 0:02:50]} h4 {[%emt 0:20:47]} 16. Nc2 {[%emt 0:06:56]} hxg3 {[%emt 0:00:05]} 17. hxg3 {[%emt 0:17:59]} Ng4 {[%emt 0:03:29]} 18. Nxb4 {[%emt 0:01:18]} Bh6 {[%emt 0:00:25]} 19. f4 {[%emt 0:02:24]} c5 {[%emt 0:07:20]} 20. Nd3 {[%emt 0:23:41]} c4 {[%emt 0:13:13]} 21. bxc4 {[%emt 0:00:09]} Qb6+ {[%emt 0:01:28]} 22. c5 {[%emt 0:02:11]} dxc5 {[%emt 0:00:04]} 23. Ba3 {[%emt 0:01:24]} Nb7 {[%emt 0:09:40]} 24. Nxc5 {[%emt 0:01:13]} Nd6 {[%emt 0:00:53]} 25. Bf3 {[%emt 0:06:37]} Nb5 {[%emt 0:02:45]} 26. Bb2 {[%emt 0:07:12]} Nd4 {[%emt 0:00:40]} 27. Bxd4 {[%emt 0:00:27]} exd4 {[%emt 0:00:03]} 28. Qxd4 {[%emt 0:03:02]} Bg7 {[%emt 0:00:11]} 29. Qd2 {[%emt 0:00:05]} Qa7 {[%emt 0:00:42]} 30. Rc2 {[%emt 0:02:09]} Bf5 {[%emt 0:01:03]} 31. e4 {[%emt 0:00:04]} Rfc8 {[%emt 0:00:52]} 32. Rfc1 {[%emt 0:00:54]} Rxc5 {[%emt 0:01:50]} 33. Rxc5 {[%emt 0:00:05]} Rxb1 {[%emt 0:00:26]} 34. Rxb1 {[%emt 0:00:45]} Qxc5+ {[%emt 0:00:04]} 35. Kg2 {[%emt 0:00:12]} Ne3+ {[%emt 0:01:07]} 36. Kh1 {[%emt 0:01:46]} Bg4 {[%emt 0:00:25]} 37. Bxg4 {[%emt 0:00:18]} Nxg4 {[%emt 0:00:03]} 38. e5 {[%emt 0:00:52]} Qc4 {[%emt 0:00:33]} 39. Re1 {[%emt 0:00:52]} Bf8 {[%emt 0:00:58]} 40. d6 {[%emt 0:00:00]} Qc6+ {[%emt 0:00:00]} 41. Qg2 {[%emt 0:07:36]} Qc3 {[%emt 0:00:31]} 42. Rf1 {[%emt 0:02:02]} Qd3 $2 {[%emt 0:09:45][%mdl 8192]} ({Black should try} 42... f5 $1 $14) 43. Qf3 $1 $18 {[%emt 0:00:44]} Qf5 {[%emt 0:00:05]} 44. Kg1 $2 {[%emt 0:00:42]} (44. Re1 $1 $18) 44... Bxd6 $1 $11 {[%emt 0:05:15]} 45. exd6 {[%emt 0:01:00]} Qc5+ {[%emt 0:00:13]} 46. Kg2 {[%emt 0:01:54]} (46. Kh1 $2 Qh5+ 47. Kg2 Qh2#) 46... Qc2+ {[%emt 0:04:20]} 47. Rf2 $1 {[%emt 0:00:21]} (47. Kh3 $2 Qh2+ 48. Kxg4 Qh5#) 47... Nxf2 {[%emt 0:00:06]} 48. Qxf2 {[%emt 0:00:01]} Qc6+ {[%emt 0:00:06]} 49. Kh2 {[%emt 0:00:02]} (49. Qf3 Qxd6 50. f5 Qd2+ 51. Qf2 Qd5+ (51... Qxf2+ 52. Kxf2 Kf8 53. fxg6 fxg6 54. Kf3 Kf7 55. Kf4 Kf6 56. a4) 52. Kh2 gxf5) 49... Qxd6 {[%emt 0:00:04]} 50. a4 {[%emt 0:00:14]} Qd5 {[%emt 0:02:41]} 51. Qe2 {[%emt 0:01:38]} Kh7 {[%emt 0:03:53]} 52. Qg2 {[%emt 0:00:49]} Qa5 $1 {[%emt 0:01:02]} 53. Qa2 {[%emt 0:00:34]} Kg8 {[%emt 0:00:30]} 54. Qc2 {[%emt 0:10:35]} Qh5+ {[%emt 0:01:35]} 55. Kg2 {[%emt 0:00:04]} Qd5+ {[%emt 0:00:05]} 56. Kf2 {[%emt 0:00:29]} Qh1 {[%emt 0:03:50]} 57. Qb3 {[%emt 0:01:01]} Qh2+ {[%emt 0:01:06]} 58. Kf3 {[%emt 0:00:17]} Qh1+ {[%emt 0:01:10]} 59. Ke3 {[%emt 0:00:07]} Qg1+ {[%emt 0:00:52]} 60. Ke4 {[%emt 0:00:13]} Qc5 {[%emt 0:00:29]} 61. Qb5 {[%emt 0:02:15]} Qc2+ {[%emt 0:00:16]} 62. Kd5 {[%emt 0:00:50]} Qg2+ {[%emt 0:00:21]} 63. Kc5 {[%emt 0:01:09]} Qxg3 {[%emt 0:00:29]} 64. Qe8+ {[%emt 0:00:05]} Kg7 {[%emt 0:00:04]} 65. Qe5+ {[%emt 0:00:04]} f6 {[%emt 0:04:12]} 66. Qe7+ {[%emt 0:01:07]} Kg8 {[%emt 0:00:23]} 67. Qd8+ {[%emt 0:02:26]} Kg7 {[%emt 0:00:07]} 68. a5 {[%emt 0:01:03]} Qe3+ {[%emt 0:01:02]} 69. Qd4 {[%emt 0:00:40]} Qe6 {[%emt 0:00:24]} 70. Qd6 {[%emt 0:00:32]} Qe3+ {[%emt 0:00:09]} 71. Kc6 {[%emt 0:01:47]} g5 $2 {[%emt 0:00:07]} (71... Qe2 $14) 72. fxg5 $18 {[%emt 0:00:22]} fxg5 {[%emt 0:01:09] [#]} 73. a6 $1 {[%emt 0:00:03]} g4 {[%emt 0:00:31]} 74. Qd7+ {[%emt 0:00:31]} Kh6 $2 {[%emt 0:00:38] [#]} (74... Kh8 $18 75. a7 (75. Qxg4 Qc3+ 76. Kb5 Qe5+ 77. Kc4 Qc7+ 78. Kd3 Qh7+ 79. Kc3 Qc7+ 80. Qc4 Qg3+ 81. Kb4 Qd6+ 82. Kb3 Kg7 $16) 75... Qc3+ 76. Kb6 Qb4+ 77. Qb5 Qd6+ 78. Qc6 Qb4+ 79. Kc7 Qf4+ 80. Kd8 Qg5+ 81. Kc8 Qg8+ 82. Kc7 Qg7+ 83. Kb8 Qe5+ 84. Kc8 Qf5+ 85. Kb7 Qf7+ 86. Kb8 Qf4+ 87. Qc7 Qb4+ 88. Kc8 Qe4 89. Qh2+ Kg7 90. Qb2+ Kg6 91. Qb6+ Kh5 92. Qa5+ Kg6) 75. a7 $1 {[%emt 0:00:59]} Qc1+ {[%emt 0:00:15]} 76. Kb7 {[%emt 0:00:11]} Qb2+ {[%emt 0:00:11]} 77. Kc7 {[%emt 0:00:04]} 1-0

[Event "14th Karen Asrian Memorial 2024"]
[Site "Yerevan"]
[Date "2024.04.26"]
[Round "3.6"]
[White "Danielyan, Vahe"]
[Black "Andriasian, Zaven"]
[Result "1-0"]
[ECO "B51"]
[WhiteElo "2331"]
[BlackElo "2570"]
[Annotator "TA"]
[PlyCount "111"]
[EventDate "2024.04.24"]
[EventType "swiss"]
[EventCountry "ARM"]
[SourceTitle "playchess.com"]
[Source "ChessBase"]
[SourceQuality "1"]
[TimeControl "40/5400+30:1800+30"]

{[%evp 12,111,38,32,33,27,46,30,64,18,0,7,52,0,0,0,0,0,0,0,20,0,0,0,-5,-25,0,0,0,-34,-35,-47,-39,-120,-121,-185,-192,-188,-162,-269,0,0,0,0,34,45,174,16,25,0,113,105,186,194,185,193,190,181,167,193,410,399,689,360,608,580,565,560,489,193,1283,1218,1192,622,771,781,849,840,1478,8,27,45,743,720,2158,1383,7770,5778,29978,817,964,773,621,149,29979,29980,29980,29981,29981,29982,29982,29982]} 1. e4 {[%emt 0:00:03]} c5 {[%emt 0:00:09]} 2. Nf3 {[%emt 0:00:05]} d6 {[%emt 0:00:15]} 3. Bb5+ {[%emt 0:00:06]} Nc6 {[%emt 0:00:31]} 4. O-O {[%emt 0:00:22]} Bd7 {[%emt 0:00:15]} 5. Re1 {[%emt 0:00:08]} a6 {[%emt 0:01:10]} 6. Bf1 {[%emt 0:00:06]} g6 {[%emt 0:01:13]} 7. c3 {[%emt 0:01:22]} Bg4 {[%emt 0:00:26]} 8. d4 {[%emt 0:01:50]} Bxf3 {[%emt 0:01:35]} 9. gxf3 {[%emt 0:00:29]} Bg7 {[%emt 0:05:35][%cal Rc5d4] White has an edge.} 10. Be3 {[%emt 0:00:31]} (10. d5 $14 Na5 11. Bg5) 10... cxd4 $11 {[%emt 0:10:19]} 11. cxd4 {[%emt 0:01:12]} Nf6 {[%emt 0:00:37]} (11... e6 $5) 12. Nd2 {[%emt 0:02:17]} (12. d5 $14 Ne5 13. a4) 12... d5 {[%emt 0:06:53]} 13. e5 {[%emt 0:02:32]} Nd7 {[%emt 0:00:26]} 14. Qb3 {[%emt 0:08:09]} Nb6 {[%emt 1:08:06]} 15. a4 {[%emt 0:04:14] a5 is the strong threat.} a5 {[%emt 0:00:00]} 16. Bb5 {[%emt 0:00:21]} O-O {[%emt 0:00:00]} 17. Bxc6 {[%emt 0:02:33]} bxc6 {[%emt 0:00:00]} 18. Rec1 {[%emt 0:00:29]} Rc8 {[%emt 0:00:00]} 19. Rc3 {[%emt 0:05:33]} Nd7 {[%emt 0:00:00]} 20. Rac1 {[%emt 0:01:31]} Rb8 {[%emt 0:00:00]} 21. Qc2 {[%emt 0:15:26]} c5 {[%emt 0:00:00]} 22. f4 {[%emt 0:05:07]} (22. dxc5 $15 Nxe5 (22... Bxe5 23. c6 $16) 23. c6) 22... Rb4 $1 $17 {[%emt 0:00:00]} 23. dxc5 {[%emt 0:05:58]} (23. Nf3 $17 c4 24. Nd2) 23... d4 $19 {[%emt 0:00:00]} 24. Rd3 {[%emt 0:00:55]} dxe3 {[%emt 0:00:00]} 25. c6 {[%emt 0:04:51]} (25. fxe3 $142 Qc7 26. c6) 25... exf2+ $2 {[%emt 0:00:00]} (25... exd2 $19 26. Qxd2 Bh6 27. Rxd7 Qc8) 26. Kf1 $11 {[%emt 0:00:02]} Qa8 {[%emt 0:00:00]} 27. Rxd7 {[%emt 0:02:45]} Rxf4 {[%emt 0:00:00]} 28. Qc5 {[%emt 0:00:02]} Rc8 {[%emt 0:00:00]} ({Better is} 28... Rxa4 $14 29. Nc4 Bh6) 29. e6 $2 {[%emt 0:03:40]} (29. b3 $18 {[%cal Od7a7] Black must now prevent Ra7!} Bh6 30. Ra7 (30. Rxe7 Rf8 $16)) 29... Bf6 $1 {[%emt 0:00:00]} (29... Bxb2 $2 30. Rc4 $18 (30. Qxe7 Rf8 $11) (30. Qxe7 Rf8 $11)) (29... fxe6 30. Qxe7 Bd4 31. Rc4 (31. Qxh7+ Kf8 32. Rc4 Qa6 33. Qh6+ Kg8 34. Qxf4 Rf8 35. Qh6 Qxc4+ 36. Nxc4 Rf5 37. Qh7+ Kf8 38. Rd8#) 31... Qa6 32. c7 (32. Qxe6+ Kh8 33. Qe7 Kg8 34. Qxh7+ Kf8 35. Qh6+ Kg8 36. Qxf4 Rf8 37. Qh6 Qxc4+ 38. Nxc4 Rf3 39. Qh7+ Kf8 40. Rd8#) (32. Qxh7+ Kf8 33. Qe7+ Kg8 34. c7 Qd6 35. Qxd6 Rg4 36. Qxe6+ Kh8 37. Qxg4 Bg7 38. Qxg6 Rg8 39. Qh5+ Bh6 40. Qxh6#) 32... Qa8 33. Ne4 (33. Rcxd4 Qh1+ 34. Ke2 f1=Q+ 35. Nxf1 Qxf1+ 36. Ke3 Rf3+ 37. Kd2 Rf2+ 38. Kc3 Qc1+ 39. Kd3 Qc2+ 40. Ke3 Qe2#) (33. Rd8+ Rxd8 34. cxd8=R+ Qxd8 35. Qxd8+ Kg7 36. Rxd4 Rf7 37. Qxa5 Kh8 38. Qe5+ Kg8) (33. Rcxd4 Qh1+ 34. Ke2 f1=Q+ 35. Nxf1 Qxf1+ 36. Ke3 Rf3+ 37. Kd2 Rf2+ 38. Kc3 Qc1+ 39. Kd3 Qc2+ 40. Ke3 Qe2#) (33. Rd8+ Rxd8 34. cxd8=Q+ Qxd8 35. Qxd8+ Kg7 36. Rxd4 Rxd4 37. Qxd4+ Kf7)) 30. exf7+ {[%emt 0:04:37]} Kg7 {[%emt 0:00:00] Black is weak on the light squares} (30... Kxf7 $11 {remains equal.} 31. Rc2 Kg7 (31... Rxa4 32. Qd5+ Kf8 33. h3 $17)) 31. b3 $1 $16 {[%emt 0:01:14] Active counter play!} Rb4 {[%emt 0:00:00]} (31... Rf5 $16 {might work better.} 32. Qb6 Bb2) 32. Ra7 $40 {[%emt 0:03:02][%cal Bd7a7,Ba7a5,Ba5b5][%mdl 160] White attacks with force.} (32. Qxf2 $2 Rxc6 (32... Kxf7 33. Ra7 $16) 33. Rxc6 Qxc6 $19) (32. Kxf2 $6 Qa6 $16) 32... Qb8 {[%emt 0:00:00]} 33. c7 {[%emt 0:00:49]} (33. Qxf2 $2 Rf4 (33... Kxf7 34. c7 $16) 34. Nf3 Qxb3 $19 (34... Kxf7 35. Rb7 $15) (34... Rxf3 $2 35. Qxf3 Qxa7 36. Rc4 $19)) (33. Qxa5 Qxh2 34. Qxb4 Qg1+ 35. Ke2 Qxc1 36. Kxf2 Rxc6 $19 (36... Qxc6 $2 37. Rxe7 Bxe7 38. Qxe7 $19)) 33... Qb6 {[%emt 0:00:00]} 34. Qxb6 {[%emt 0:00:10]} (34. Qxf2 $2 Qxf2+ (34... Kxf7 35. Qxb6 Rxb6 36. Rxa5 $18) 35. Kxf2 Bd4+ (35... Kxf7 36. Rxa5 Ke6 37. Rc4 $16) 36. Ke2 Bxa7 $19) (34. Rxa5 Rxc7 35. Qxc7 Qe3 36. f8=Q+ Kxf8 $17) 34... Rxb6 {[%emt 0:00:00]} 35. Rxa5 {[%emt 0:00:32]} (35. Kxf2 $6 Bg5 36. Rf1 Rc6 $14 (36... Bxd2 37. Ke2 $14)) 35... Re6 $2 {[%emt 0:01:06]} (35... Rb7 {is a better defense.} 36. Rac5 (36. Kxf2 Rbxc7 37. Rxc7 Rxc7 $16) 36... Bd4) 36. Nf3 {[%emt 0:03:42]} (36. Kxf2 Bd4+ 37. Kf1 Kxf7 $16) 36... g5 $2 {[%emt 0:01:11]} (36... Kxf7 37. Rd5 (37. Kxf2 Ke8 $18) 37... Ke8) 37. h3 {[%emt 0:02:35]} (37. Nxg5 $2 Re1+ 38. Kxf2 (38. Rxe1 $2 fxe1=Q+ 39. Kxe1 Bc3+ 40. Kd1 Bxa5 $19) 38... Rxc1 $19) 37... h5 $2 {[%emt 0:00:15]} (37... Kxf7 38. Rc4 (38. Nxg5+ Bxg5 39. Rxg5 Re1+ 40. Rxe1 fxe1=N $18) (38. Kxf2 Ke8 $18) 38... Ke8 39. Kxf2 (39. Nxg5 Re5 $18) 39... Kd7) 38. Rc4 {[%emt 0:00:42]} (38. Nxg5 $2 Re1+ 39. Kxf2 (39. Rxe1 $2 fxe1=Q+ 40. Kxe1 Bc3+ 41. Ke2 Bxa5 $19) 39... Rxc1 $19) 38... g4 {[%emt 0:01:18]} 39. hxg4 {[%emt 0:01:42]} hxg4 {[%emt 0:00:01] [#]} 40. Rb5 $2 {[%emt 0:00:00]} g3 $2 {[%emt 0:00:00]} (40... gxf3 41. Rb8 (41. Kxf2 Kxf7 42. Rb8 Rxc7 $16) 41... Re1+ 42. Kxf2 Kxf7 43. Rxc8 $18 (43. Kxe1 Rxc7 44. Rxc7 Bh4+ 45. Kf1 Kf6 $18)) (40... Kxf7 41. Rb8 (41. Rxg4 Rxc7 42. Ng5+ Bxg5 $11) 41... Rxc7 42. Rxc7 gxf3 43. Kxf2 Be5) 41. Rb8 {[%emt 0:02:42]} Rd6 {[%emt 0:04:16]} 42. Rc1 {[%emt 0:01:53]} (42. Rxc8 Rd1+ (42... Kxf7 43. Rd8 g2+ 44. Kxg2 Bg7 45. Rxd6 exd6 46. c8=Q f1=B+ 47. Kxf1) 43. Kg2 f1=Q+ 44. Kxg3 Be5+ (44... Kxf7 $2 45. Rd8 $18) 45. Nxe5 Qg1+ 46. Kf3 Rf1+ 47. Ke4 Qg2+ 48. Kd4 Qb2+ 49. Rc3 (49. Kd5 Rd1+ 50. Kc5 Qxe5+ 51. Kb6 Rd6+ 52. Rc6 Qe3+ 53. Kb7 Qxb3+ 54. Ka7 Qxa4+ 55. Kb8 Kxf7 $17) 49... Qd2+ 50. Nd3 (50. Kc4 Rf4+ 51. Kb5 Qd5+ 52. Ka6 Rf6+ $15) 50... Rf4+ 51. Kd5 Qxc3 $11) 42... Rdd8 {[%emt 0:00:08]} 43. Rxc8 {[%emt 0:11:08]} (43. cxd8=R $2 Rxc1+ 44. Kg2 f1=Q+ $19) 43... Rxc8 {[%emt 0:00:06][%mdl 4096] Endgame. KRB-KRN} 44. b4 {[%emt 0:00:50][%cal Bb3b4,Bb4b5,Bb5b6][%mdl 32]} e5 {[%emt 0:01:09][%cal Be7e5,Be5e4][%mdl 32]} 45. Rc6 $2 {[%emt 0:05:36]} (45. f8=R $18 Kxf8 46. b5) 45... Kxf7 $11 {[%emt 0:04:19] aiming for ...e4.} 46. Nd2 {[%emt 0:00:45] The board is on fire.} Bh4 $2 {[%emt 0:13:43][%mdl 8192]} (46... e4 $14 47. Nxe4 Be5) 47. Kg2 $18 {[%emt 0:01:04] Hoping for b5.} Ke7 {[%emt 0:00:41]} 48. b5 {[%emt 0:02:30] Threatens to win with Nf3.} Kd7 {[%emt 0:11:47]} 49. Nf3 {[%emt 0:04:06][%csl LRe5,LRh4]} e4 {[%emt 0:01:13]} 50. Nxh4 {[%emt 0:00:29] KRN-KR} (50. Ne5+ $142 Ke7 51. b6 Rg8 52. Ng6+ (52. c8=R f1=Q+ 53. Kxf1 g2+ 54. Ke2 Rxc8 $11) 52... Kd7 53. b7 Kxc6 54. c8=Q+ (54. c8=R+ Kxb7 55. Rxg8 Bg5 $18) 54... Rxc8 55. bxc8=Q+ Kd5 56. Nxh4) 50... e3 {[%emt 0:00:08] [#]} 51. Rc2 $1 {[%emt 0:01:30]} (51. Kxg3 f1=Q (51... f1=R $2 52. Ng6 $19) 52. Nf3 Rg8+ (52... Rxc7 $2 53. Ne5+ Kc8 54. Nf3 $19) (52... Qf2+ 53. Kg4 Rg8+ 54. Kf4 e2 55. c8=R Rxc8 56. Ke4 Re8+ 57. Ne5+ Rxe5+ 58. Kd3 e1=Q 59. Rc7+ Kxc7 60. b6+ Kxb6 61. a5+ Kc5 62. a6 Qf5#) 53. Kf4 e2 54. Ke3 Re8+ (54... e1=R+ 55. Nxe1 Qxe1+ 56. Kd3 Rg3+ 57. Kc2 Qe2+ 58. Kb1 Rg1+ 59. Rc1 Qd3+ 60. Ka2 Rg2+ 61. Ka1 Qa3+ 62. Kb1 Rb2#) 55. Kd2 Qxf3 56. Rc1 Qe3+ (56... Qf4+ 57. Kc2) 57. Kc2 Qxc1+ (57... e1=B 58. Rd1+ Kxc7 59. Rc1 Kb7 60. Rxe1 Qxe1 61. Kd3 Re3+ 62. Kd4 Qc3+ 63. Kd5 Re5+ 64. Kd6 Qd4#) 58. Kxc1 e1=Q+ (58... e1=R+ 59. Kd2 Kxc7 60. Kc3 Kb6 61. Kd4 R8e4+ 62. Kc3 Kc5 63. Kc2 Kc4 64. Kb2 R4e2+ 65. Ka3 Ra1#) 59. Kc2 Re2+ (59... Kxc7 60. a5 Qf2+ 61. Kb3 Qg3+ 62. Kc4 Re4+ 63. Kd5 Qe5#) 60. Kb3 Re3+ (60... Kxc7 61. b6+ Kxb6 62. Kc4 Re3 63. a5+ Qxa5 64. Kd4 Qc5#) 61. Kc2 Qf2+ 62. Kd1 Re1#) 51... Rf8 {[%emt 0:00:26]} 52. Kf1 $2 {[%emt 0:04:21]} (52. Kxg3 f1=Q (52... f1=R 53. Ng2 $15) 53. c8=R Qf4+ (53... Rxc8 54. Rxc8 Kxc8 55. Ng2 Qf2+ 56. Kh2 e2 57. Kh3 Kb8 58. a5 Ka7 59. b6+ Kb7 60. Ne1 Qxe1 61. a6+ Kxb6 62. a7 Qh1+ 63. Kg4 Kxa7 64. Kg5 e1=Q 65. Kg4 Qhh4+ 66. Kf5 Qee4#) 54. Kh3 Rxc8 55. Rxc8 Kxc8 56. Ng2 Qf3+ (56... Qxa4 57. Nxe3 Qa3 58. Kg4 Qxe3 59. b6 Kb7 60. Kf5 Kxb6 61. Kg4 Kc5 62. Kf5 Kd6 63. Kf6 Qf4+ 64. Kg6 Ke6 65. Kh5 Qg3 66. Kh6 Kf6 67. Kh7 Qg7#) 57. Kh2 Qf2 58. Kh3 e2 59. a5 Kb7 (59... e1=R 60. Nxe1 Qxe1 61. a6 Qg1 62. a7 Qxa7 63. Kg3 Qb8+ 64. Kg4 Qxb5 65. Kf3 Qd3+ 66. Kg2 Qe2+ 67. Kg3 Kd7 68. Kf4 Ke6 69. Kg5 Qf3 70. Kh4 Qg2 71. Kh5 Kf5 72. Kh6 Qg6#) 60. a6+ Kb6 61. a7 Kxa7 (61... e1=R $2 62. a8=Q $19) 62. Kg4 Qxg2+ 63. Kf5 e1=Q (63... e1=R 64. b6+ Kxb6 65. Kf4 Qf2+ 66. Kg5 Rg1+ 67. Kh6 Qh4#) 64. b6+ Kxb6 65. Kf6 Qf3+ 66. Kg6 Qeg3+ 67. Kh7 Qh5#) (52. Nf5 $18 {[%cal Ob5b6] is more deadly. Threatening mate with b6!} e2 53. c8=Q+ (53. Nxg3 f1=Q+ 54. Nxf1 exf1=Q+ 55. Kh2 Rh8+ 56. Kg3 Rg8+ 57. Kh2 Qg1+ 58. Kh3 Rh8#) 53... Rxc8 54. Rd2+ (54. Rxe2 Rc4 $18) 54... Kc7 55. Rxe2 (55. Nxg3 $2 f1=Q+ 56. Nxf1 e1=Q $19)) 52... Kc8 $2 {[%emt 0:00:31][%mdl 8192]} (52... e2+ $16 53. Rxe2 Kxc7) 53. b6 {[%emt 0:02:50] White mates.} Rh8 {[%emt 0:00:24] [#]} 54. Ke2 $1 {[%emt 0:00:37]} Rf8 {[%emt 0:03:39] [#]} (54... Rg8 55. Rc1) 55. Rc1 $1 {[%emt 0:00:24]} (55. Kxe3 $2 {perishes.} f1=Q (55... f1=R 56. a5 $11) 56. b7+ Kxb7 57. c8=B+ Rxc8 $19) 55... Kb7 {[%emt 0:00:07]} 56. c8=Q+ {[%emt 0:00:39] Quite a comeback for White.   Weighted Error Value: White=0.75/Black=0.72.  Loses game:     	---       	Black=1      Missed win:     	---       	Black=1      Mistake:       	White=7     	Black=7      Inaccurate:     	White=2     	Black=4      OK:         	White=12    	Black=8      Best:        	White=2     	Black=6      Strong:       	White=1     	Black=2} ({Less strong is} 56. Kxe3 f1=Q 57. c8=Q+ (57. Rxf1 Rxf1 58. a5 Rc1 $11) 57... Rxc8 $14) 1-0

[Event "14th Karen Asrian Memorial 2024"]
[Site "Yerevan"]
[Date "2024.04.26"]
[Round "3.7"]
[White "Pranesh M"]
[Black "Melkonyan, Arshak"]
[Result "1-0"]
[ECO "C05"]
[WhiteElo "2538"]
[BlackElo "2170"]
[Annotator "TA"]
[PlyCount "53"]
[EventDate "2024.04.24"]
[EventType "swiss"]
[EventCountry "ARM"]
[SourceTitle "playchess.com"]
[Source "ChessBase"]
[SourceQuality "1"]
[TimeControl "40/5400+30:1800+30"]

{[%evp 12,53,4,10,23,22,34,7,28,17,28,33,45,31,66,22,29,-4,19,-31,-48,-77,-77,-75,0,-48,-30,-88,133,155,188,197,187,192,1262,1252,1302,585,580,558,575,563,565,558]} 1. e4 {[%emt 0:00:03]} e6 {[%emt 0:02:05]} 2. d4 {[%emt 0:00:05]} d5 {[%emt 0:00:07]} 3. Nc3 {[%emt 0:00:04]} Nf6 {[%emt 0:00:09]} 4. e5 {[%emt 0:00:15]} Nfd7 {[%emt 0:00:05]} 5. f4 {[%emt 0:00:05]} c5 {[%emt 0:00:04]} 6. Nf3 {[%emt 0:00:25]} Nc6 {[%emt 0:00:05]} 7. Ne2 {[%emt 0:00:08]} a6 {[%emt 0:00:23]} 8. c3 {[%emt 0:00:06]} b5 {[%emt 0:16:35]} 9. g3 {[%emt 0:00:40]} Bb7 {[%emt 0:01:42] The position is equal.} 10. Bh3 {[%emt 0:04:37]} g6 {[%emt 0:00:21]} 11. O-O {[%emt 0:00:28]} cxd4 {[%emt 0:00:29]} 12. cxd4 {[%emt 0:00:20]} h5 {[%emt 0:01:12]} 13. Ng5 {[%emt 0:02:58]} Ne7 {[%emt 0:00:19]} 14. f5 {[%emt 0:11:11]} Nxf5 {[%emt 0:17:03] [#]} 15. Nf4 {[%emt 0:02:04]} Qb6 $15 {[%emt 0:02:44]} (15... Qxg5 16. Nxe6 Qe7 17. Nc7+ Kd8 18. Nxa8 Bxa8 19. Bd2 $16) 16. Ngxe6 {[%emt 0:10:15]} fxe6 {[%emt 0:03:40]} 17. Nxg6 {[%emt 0:00:13] [#]} Rg8 {[%emt 0:00:40]} (17... Rh7 $1 $17 18. Bxf5 exf5) 18. Bxf5 {[%emt 0:09:26]} (18. Qxh5 $2 Qxd4+ 19. Kh1 Qe4+ 20. Bg2 Nxg3+ 21. hxg3 Qxg6 $19) (18. Nxf8 $11 {feels stronger.} Nxf8 19. Qxh5+ Rg6 20. Bxf5 (20. Be3 O-O-O $11) 20... Qxd4+ (20... exf5 21. Qxf5 Qxd4+ 22. Rf2 $11) 21. Rf2 exf5 22. Qxf5 Qd1+ 23. Rf1 Qd4+ 24. Rf2 Qd1+ 25. Rf1 Qd4+ 26. Rf2) 18... exf5 {[%emt 0:00:23]} 19. Nh4 {[%emt 0:01:38]} (19. Nxf8 $1 $11 Nxf8 20. Qxh5+ Ng6 21. Be3) 19... Nxe5 $2 {[%emt 0:21:34]} (19... O-O-O $17 20. Bf4 Nc5) 20. Qxh5+ $16 {[%emt 0:04:12]} (20. Rxf5 Ng6 21. Bg5 Be7 (21... Nxh4 22. Qe2+ Kd7 23. Rf7+) 22. Bxe7 (22. Qxh5 $2 O-O-O $17) 22... Nxe7 $17) 20... Ng6 {[%emt 0:00:52]} 21. Re1+ {[%emt 0:01:10]} (21. Nxf5 O-O-O 22. Bg5 Re8 $17) 21... Kd8 {[%emt 0:03:53]} 22. Nxf5 {[%emt 0:02:55] And now Qh7 would win.} Be7 $2 {[%emt 0:03:47]} (22... Rh8 23. Qg5+ Kc8) 23. Nxe7 $18 {[%emt 0:05:19] White is clearly winning.} Nxe7 {[%emt 0:00:05]} 24. Qh4 {[%emt 0:00:23]} (24. Rxe7 $142 {White threatens Bg5 and mate.} Kxe7 25. Bg5+ (25. Qh7+ Ke8 $18) 25... Rxg5 26. Re1+ (26. Qxg5+ Kd7 $11) 26... Kd7 27. Qf7+ (27. Qxg5 $2 {perishes.} Qxd4+ 28. Qe3 Qxe3+ 29. Rxe3 Kd6 $19) 27... Kc8 28. Re8+ Qd8 29. Rxd8+ (29. Qe7 Qxe8 30. Qxe8+ Kc7 $18) 29... Kxd8 30. Qf6+ (30. Qxb7 Rc8 $18) 30... Kc7 31. Qxg5) 24... Rg7 {[%emt 0:01:05]} 25. Bg5 {[%emt 0:01:53]} Rxg5 {[%emt 0:00:21]} 26. Qxg5 {[%emt 0:00:05]} Qxd4+ {[%emt 0:00:04]} 27. Re3 {[%emt 0:00:26] Weighted Error Value: White=0.55/Black=0.38.  Mistake:       	White=3     	Black=3      Inaccurate:     	White=4     	Black=1      OK:         	White=2     	Black=4      Best:        	White=5     	Black=2} 1-0